bitfinex-derivatives/quotes_BNBF0:USTF0_20230831
["timestamp","ask_amount","ask_price","bid_price","bid_amount"]
[1693449414615,0.07345938,223.06,222.87,0.82354251]
[1693449416421,0.07345938,223.07,222.87,0.89712713]
[1693449416619,0.07345938,223.07,222.88,0.82354251]
[1693449417519,0.07345938,223.07,222.86,0.07358462]
[1693449417719,0.07345938,223.07,222.87,0.82337306]
[1693449419825,0.07345938,223.08,222.87,0.82337306]
[1693449421725,0.07345938,223.08,222.87,0.89695768]
[1693449421919,0.07345938,223.08,222.88,0.82337306]
[1693449422318,0.07345938,223.08,222.86,0.07358462]
[1693449422526,0.07345938,223.08,222.87,0.82327339]
[1693449427229,0.07345938,223.09,222.87,0.82327339]
[1693449432429,0.07345938,223.09,222.88,0.82327339]
[1693449432630,0.07345938,223.09,222.85,0.07358462]
[1693449432832,0.07345938,223.09,222.86,0.82330647]
[1693449437339,0.07345938,223.09,222.86,0.89689109]
[1693449437638,0.07345938,223.09,222.87,0.82330647]
[1693449441544,0.07345938,223.1,222.87,0.82330647]
[1693449447141,0.07345938,223.09,222.87,0.82330647]
[1693449448147,0.07345938,223.09,222.87,0.89689109]
[1693449448347,0.07345938,223.09,222.88,0.82330647]
[1693449464666,0.07345938,223.09,222.88,0.89689109]
[1693449464860,0.07345938,223.09,222.89,0.82330647]
[1693449476471,0.07345938,223.08,222.89,0.82330647]
[1693449494890,0.14691876,223.11,222.89,0.82330647]
[1693449494891,0.07345938,223.09,222.89,0.82330647]
[1693449507500,0.07345938,223.1,222.89,0.89689109]
[1693449507699,0.07345938,223.1,222.9,0.82330647]
[1693449510404,0.07345938,223.1,222.88,0.07358462]
[1693449510600,0.07345938,223.1,222.89,0.82307214]
[1693449521314,0.07345938,223.11,222.89,0.89665676]
[1693449521512,0.07345938,223.11,222.9,0.82307214]
[1693449531028,0.07345938,223.11,222.88,0.07358462]
[1693449531220,0.07345938,223.11,222.89,0.82303908]
[1693449531622,0.07345938,223.11,222.89,0.8966237]
[1693449531921,0.07345938,223.11,222.9,0.82303908]
[1693449532222,0.07345938,223.1,222.9,0.82303908]
[1693449533027,0.07345938,223.11,222.9,0.82303908]
[1693449536128,0.07345938,223.1,222.9,0.82303908]
[1693449536727,0.07345938,223.1,222.88,0.07358462]
[1693449536928,0.07345938,223.1,222.89,0.82302557]
[1693449537129,0.07345938,223.1,222.89,0.89661019]
[1693449537329,0.07345938,223.1,222.9,0.82302557]
[1693449555034,0.07345938,223.09,222.9,0.82302557]
[1693449563650,0.07345938,223.09,222.88,0.07358462]
[1693449563854,0.07345938,223.09,222.89,0.82315883]
[1693449571755,0.07345938,223.09,222.87,0.07358462]
[1693449571954,0.07345938,223.08,222.88,0.82323124]
[1693449572354,0.07345938,223.08,222.86,0.07358462]
[1693449572655,0.07345938,223.08,222.87,0.82326477]
[1693449573748,0.07345938,223.09,222.87,0.82326477]
[1693449578755,0.07345938,223.09,222.88,0.82326477]
[1693449578953,0.07345938,223.09,222.86,0.07358462]
[1693449579157,0.07345938,223.09,222.87,0.82315604]
[1693449579860,0.07345938,223.09,222.88,0.82315604]
[1693449580055,0.07345938,223.09,222.85,0.07358462]
[1693449580259,0.07345938,223.09,222.86,0.82317036]
[1693449588671,0.07345938,223.09,222.86,0.89675498]
[1693449588873,0.07345938,223.09,222.87,0.82317036]
[1693449589265,0.07345938,223.09,222.88,0.82317036]
[1693449589468,0.07345938,223.09,222.85,0.07358462]
[1693449589670,0.07345938,223.09,222.86,0.82315435]
[1693449594574,0.07345938,223.09,222.86,0.89673897]
[1693449594771,0.07345938,223.09,222.87,0.82315435]
[1693449596575,0.07345938,223.08,222.87,0.82315435]
[1693449597072,2.448646,223.22,222.87,0.82315435]
[1693449597267,0.07349752,223.08,222.86,0.07343718]
[1693449597473,0.07349752,223.08,222.87,0.82315435]
[1693449603580,0.07349752,223.08,222.87,0.89659153]
[1693449603779,0.07349752,223.08,222.88,0.82315435]
[1693449604079,0.07349752,223.07,222.86,0.07343718]
[1693449604275,0.07349752,223.07,222.87,0.82324163]
[1693449608681,0.07349752,223.07,222.86,0.82324163]
[1693449608878,0.07349752,223.07,222.87,0.82328981]
[1693449609078,0.07349752,223.07,222.85,0.07343718]
[1693449609277,0.07349752,223.07,222.86,0.82328978]
[1693449613189,0.07349752,223.08,222.86,0.89672696]
[1693449613383,0.07349752,223.07,222.87,0.82328978]
[1693449613584,0.07349752,223.07,222.61,0.97916247]
[1693449613585,0.07349752,223.01,222.79,0.07343718]
[1693449613785,0.07349752,223.01,222.8,0.82395629]
[1693449614379,0.07349752,223.03,222.8,0.82395629]
[1693449614582,0.07349752,223.03,222.78,0.82395629]
[1693449614780,0.07349752,223.03,222.79,0.82395629]
[1693449614985,0.07349752,223.03,222.8,0.82395629]
[1693449615183,0.07349752,223.03,222.78,0.82395629]
[1693449615385,0.07349752,223.04,222.79,0.82395629]
[1693449615585,0.07349752,223.04,222.77,0.82395629]
[1693449615786,0.07349752,223.04,222.78,0.82395629]
[1693449616085,0.07349752,223.04,222.79,0.82395629]
[1693449616286,0.07349752,223.04,222.8,0.82395629]
[1693449616485,0.07349752,223.05,222.77,0.82395629]
[1693449616686,0.07349752,223.05,222.78,0.82395629]
[1693449616885,0.07349752,223.05,222.79,0.82395629]
[1693449617085,0.07349752,223.05,222.8,0.82395629]
[1693449617287,0.07349752,223.05,222.81,0.82395629]
[1693449617588,0.07349752,223.06,222.75,0.07343718]
[1693449617782,0.07349752,223.06,222.76,0.82394333]
[1693449618187,0.07349752,223.05,222.75,0.82394333]
[1693449618388,0.07349752,223.06,222.76,0.82394333]
[1693449618586,0.07349752,223.06,222.77,0.82394333]
[1693449618785,0.07349752,223.06,222.78,0.82394333]
[1693449618982,0.07349752,223.06,222.79,0.82394333]
[1693449619185,0.07349752,223.06,222.75,0.82394333]
[1693449619384,0.07349752,223.07,222.76,0.82394333]
[1693449619588,0.07349752,223.07,222.74,0.82394333]
[1693449619787,0.07349752,223.07,222.75,0.82394333]
[1693449619983,0.07349752,223.07,222.74,0.82394333]
[1693449620182,0.07349752,223.07,222.75,0.82394333]
[1693449620381,0.07349752,223.07,222.76,0.82394333]
[1693449620586,0.07349752,223.07,222.77,0.82394333]
[1693449620783,0.07349752,223.07,222.78,0.82394333]
[1693449620987,0.07349752,223.07,222.79,0.82394333]
[1693449621287,0.07349752,223.07,222.8,0.82394333]
[1693449621488,0.07349752,223.07,222.81,0.82394333]
[1693449621683,0.07349752,223.08,222.73,0.07343718]
[1693449621886,0.07349752,223.08,222.74,0.82349774]
[1693449622689,0.07349752,223.08,222.75,0.82349774]
[1693449622890,0.07349752,223.08,222.76,0.82349774]
[1693449623189,0.07349752,223.08,222.77,0.82349774]
[1693449623390,0.07349752,223.08,222.78,0.82349774]
[1693449623586,0.07349752,223.08,222.79,0.82349774]
[1693449623791,0.07349752,223.08,222.8,0.82349774]
[1693449624091,0.07349752,223.08,222.81,0.82349774]
[1693449624289,0.07349752,223.08,222.72,0.07343718]
[1693449624502,0.07349752,223.08,222.73,0.82331527]
[1693449627695,0.07349752,223.08,222.74,0.82331527]
[1693449627895,0.07349752,223.08,222.75,0.82331527]
[1693449628092,0.07349752,223.08,222.76,0.82331527]
[1693449628295,0.07349752,223.08,222.77,0.82331527]
[1693449628601,0.07349752,223.08,222.78,0.82331527]
[1693449628799,0.07349752,223.08,222.79,0.82331527]
[1693449628999,0.07349752,223.08,222.8,0.82331527]
[1693449629300,0.07349752,223.08,222.81,0.82331527]
[1693449629500,0.07349752,223.08,222.72,0.07343718]
[1693449629703,0.07349752,223.08,222.73,0.82332973]
[1693449637005,0.07349752,223.08,222.73,0.89676691]
[1693449637208,0.07349752,223.08,222.74,0.82332973]
[1693449637407,0.07349752,223.07,222.74,0.82332973]
[1693449640406,0.07349752,223.07,222.74,0.89676691]
[1693449640606,0.07349752,223.07,222.75,0.82332973]
[1693449641312,0.07349752,223.06,222.75,0.82332973]
[1693449643414,0.07349752,223.05,222.75,0.89676691]
[1693449643713,0.07349752,223.05,222.76,0.82332973]
[1693449644213,0.07349752,223.06,222.76,0.82332973]
[1693449644409,0.07349752,223.05,222.76,0.89676691]
[1693449644614,0.07349752,223.05,222.77,0.82332973]
[1693449645415,0.07349752,223.05,222.77,0.89676691]
[1693449645711,0.07349752,223.05,222.78,0.82332973]
[1693449646615,0.07349752,223.04,222.78,0.82332973]
[1693449647415,0.07349752,223.03,222.78,0.89676691]
[1693449647614,0.07349752,223.03,222.79,0.82332973]
[1693449648412,0.07349752,223.01,222.8,0.07343718]
[1693449648614,0.07349752,223.01,222.81,0.82332973]
[1693449652119,0.07349752,223.0,222.79,0.07343718]
[1693449652317,0.07349752,223.0,222.8,0.8967531]
[1693449652515,0.07349752,223.01,222.81,0.82331592]
[1693449664528,2.4499175,223.15,222.81,0.82331592]
[1693449664729,0.07355149,223.01,222.82,0.82331592]
[1693449664928,0.07355149,223.01,222.8,0.0734645]
[1693449665130,0.07355149,223.01,222.81,0.8231642]
[1693449671239,0.07355149,223.06,222.85,0.0734645]
[1693449671431,0.07355149,223.06,222.86,0.8231642]
[1693449671633,0.07355149,223.07,222.86,0.8966287]
[1693449671833,0.07355149,223.09,222.87,0.8231642]
[1693449672032,0.07355149,223.08,222.84,0.0734645]
[1693449672234,0.07355149,223.08,222.85,0.82246893]
[1693449672930,0.07355149,223.09,222.85,0.82246893]
[1693449673135,0.07355149,223.09,222.86,0.82246893]
[1693449673330,0.07355149,223.09,222.87,0.82246893]
[1693449673538,0.07355149,223.09,222.83,0.0734645]
[1693449673741,0.07355149,223.1,222.84,0.82246949]
[1693449673936,0.07355149,223.1,222.85,0.82246949]
[1693449674133,0.07355149,223.1,222.86,0.82246949]
[1693449674336,0.07355149,223.1,222.83,0.82246949]
[1693449674546,0.07355149,223.1,222.84,0.82246949]
[1693449674739,0.07355149,223.11,222.83,0.82246949]
[1693449674937,0.07355149,223.11,222.84,0.82246949]
[1693449675145,0.07355149,223.11,222.82,0.82246949]
[1693449675335,0.07355149,223.11,222.83,0.82246949]
[1693449675540,0.07355149,223.11,222.84,0.82246949]
[1693449675741,0.07355149,223.11,222.85,0.82246949]
[1693449675937,0.07355149,223.11,222.82,0.82246949]
[1693449676140,0.07355149,223.11,222.83,0.82246949]
[1693449676342,0.07355149,223.11,222.84,0.82246949]
[1693449676551,0.07355149,223.11,222.85,0.82246949]
[1693449676745,0.07355149,223.12,222.82,0.82246949]
[1693449676944,0.07355149,223.12,222.83,0.82246949]
[1693449677249,0.07355149,223.12,222.84,0.82246949]
[1693449677542,0.07355149,223.12,222.85,0.82246949]
[1693449677744,0.07355149,223.12,222.81,0.82246949]
[1693449677939,0.07355149,223.12,222.82,0.82246949]
[1693449678137,0.07355149,223.12,222.81,0.82246949]
[1693449678343,0.07355149,223.12,222.82,0.82246949]
[1693449678643,0.07355149,223.12,222.83,0.82246949]
[1693449678842,0.07355149,223.12,222.81,0.82246949]
[1693449679042,0.07355149,223.12,222.82,0.82246949]
[1693449679248,0.07355149,223.12,222.81,0.82246949]
[1693449679439,0.07355149,223.12,222.82,0.82246949]
[1693449679644,0.07355149,223.12,222.81,0.82246949]
[1693449679839,0.07355149,223.12,222.82,0.82246949]
[1693449680041,0.07355149,223.12,222.83,0.82246949]
[1693449680246,0.07355149,223.12,222.84,0.82246949]
[1693449680442,0.07355149,223.12,222.85,0.82246949]
[1693449680651,0.07355149,223.12,222.86,0.82246949]
[1693449680846,0.07355149,223.12,222.87,0.82246949]
[1693449681049,0.07355149,223.12,222.79,0.0734645]
[1693449681248,0.07355149,223.12,222.8,0.82200377]
[1693449681447,0.07355149,223.13,222.8,0.82200377]
[1693449681747,0.07355149,223.12,222.8,0.82200377]
[1693449683653,0.07355149,223.13,222.8,0.82200377]
[1693449684054,0.07355149,223.12,222.8,0.82200377]
[1693449684351,0.07355149,223.13,222.8,0.82200377]
[1693449686651,0.07355149,223.12,222.8,0.82200377]
[1693449693359,0.07355149,223.11,222.8,0.82200377]
[1693449693660,0.07355149,223.11,222.8,0.89546827]
[1693449693861,0.07355149,223.11,222.81,0.82200377]
[1693449699665,0.07355149,223.11,222.81,0.89546827]
[1693449699868,0.07355149,223.1,222.82,0.82200377]
[1693449701568,0.07355149,223.09,222.82,0.82200377]
[1693449702766,0.07355149,223.09,222.82,0.89546827]
[1693449702966,0.07355149,223.09,222.83,0.82200377]
[1693449703670,0.07355149,223.08,222.83,0.82200377]
[1693449704872,0.07355149,223.07,222.83,0.89546827]
[1693449705069,0.07355149,223.07,222.84,0.82200377]
[1693449705370,0.07355149,223.08,222.84,0.82200377]
[1693449705568,0.07355149,223.07,222.84,0.82200377]
[1693449705772,2.4517166,223.21,222.84,0.82200377]
[1693449705773,0.07355149,223.06,222.85,0.0734645]
[1693449705966,0.07355149,223.06,222.86,0.82200377]
[1693449714781,0.07355149,223.06,222.86,0.89546827]
[1693449714979,0.07355149,223.06,222.87,0.82200377]
[1693449716880,0.07355149,223.06,222.86,0.0734645]
[1693449717081,0.07355149,223.06,222.87,0.82181795]
[1693449717285,0.07355149,223.06,222.85,0.0734645]
[1693449717580,0.07355149,223.05,222.86,0.82185038]
[1693449718181,0.07355149,223.06,222.86,0.82185038]
[1693449718778,0.07355149,223.06,222.86,0.89531488]
[1693449718977,0.07355149,223.06,222.87,0.82185038]
[1693449723987,0.07355149,223.06,222.86,0.82185038]
[1693449724283,0.07355149,223.06,222.87,0.82191256]
[1693449727793,0.07355149,223.07,222.87,0.82191256]
[1693449727981,0.07355149,223.06,222.87,0.82191256]
[1693449728184,0.07355149,223.07,222.87,0.82191256]
[1693449728587,0.07355149,223.06,222.87,0.82191256]
[1693449728788,0.07355149,223.06,222.86,0.0734645]
[1693449728981,0.07355149,223.06,222.87,0.82188249]
[1693449729185,0.07355149,223.07,222.87,0.82188249]
[1693449729590,0.07355149,223.06,222.87,0.82188249]
[1693449729889,0.07355149,223.07,222.87,0.82188249]
[1693449730089,0.07355149,223.06,222.85,0.0734645]
[1693449730288,0.07355149,223.07,222.86,0.82187991]
[1693449730587,0.07355149,223.06,222.86,0.82187991]
[1693449733388,0.07355149,223.07,222.86,0.89534441]
[1693449733588,0.07355149,223.06,222.87,0.82187991]
[1693449733891,0.07355149,223.06,222.85,0.0734645]
[1693449734091,0.07355149,223.06,222.86,0.82189104]
[1693449745795,2.4517166,223.2,222.86,0.82189104]
[1693449745999,0.07353789,223.06,222.85,0.07336576]
[1693449746202,0.07353789,223.06,222.86,0.82195103]
[1693449749197,0.07353789,223.07,222.86,0.82195103]
[1693449749497,0.07353789,223.06,222.86,0.82195103]
[1693449750300,0.07353789,223.07,222.86,0.82195103]
[1693449751303,0.07353789,223.06,222.86,0.82195103]
[1693449754009,0.07353789,223.07,222.86,0.89531679]
[1693449754303,0.07353789,223.08,222.87,0.82195103]
[1693449754510,0.07353789,223.08,222.87,0.89531679]
[1693449754808,0.07353789,223.08,222.88,0.82195103]
[1693449756202,0.07353789,223.09,222.88,0.82195103]
[1693449756406,0.07353789,223.09,222.86,0.07336576]
[1693449756606,0.07353789,223.09,222.87,0.82174534]
[1693449764823,0.07353789,223.1,222.87,0.82174534]
[1693449768724,0.07353789,223.11,222.87,0.82174534]
[1693449770322,0.07353789,223.11,222.86,0.8951111]
[1693449770522,0.07353789,223.11,222.87,0.82174534]
[1693449770920,0.07353789,223.11,222.88,0.82174534]
[1693449771119,0.07353789,223.11,222.86,0.8951111]
[1693449771323,0.07353789,223.11,222.87,0.82174534]
[1693449771523,0.07353789,223.11,222.88,0.82174534]
[1693449771723,0.07353789,223.11,222.89,0.82174534]
[1693449771925,0.07353789,223.11,222.85,0.07336576]
[1693449772125,0.07353789,223.11,222.86,0.82177066]
[1693449776225,0.07353789,223.1,222.86,0.82177066]
[1693449778128,0.07353789,223.1,222.86,0.89513642]
[1693449778327,0.07353789,223.1,222.87,0.82177066]
[1693449780629,0.07353789,223.11,222.87,0.82177066]
[1693449781228,0.07353789,223.1,222.87,0.82177066]
[1693449783131,0.07353789,223.1,222.87,0.89513642]
[1693449783327,0.07353789,223.1,222.88,0.82177066]
[1693449783729,0.07353789,223.1,222.89,0.82177066]
[1693449784028,0.07353789,223.1,222.86,0.07336576]
[1693449784330,0.07353789,223.1,222.87,0.89509684]
[1693449784531,0.07353789,223.1,222.88,0.82173108]
[1693449787229,0.07353789,223.09,222.88,0.82173108]
[1693449789136,0.07353789,223.09,222.88,0.89509684]
[1693449789335,0.07353789,223.09,222.89,0.82173108]
[1693449817065,0.07353789,223.08,222.89,0.82173108]
[1693449818469,0.07353789,223.08,222.88,0.07336576]
[1693449818668,0.07353789,223.08,222.87,0.07336576]
[1693449818871,0.07353789,223.07,222.88,0.82157928]
[1693449819465,0.07353789,223.08,222.88,0.82157928]
[1693449822768,0.07353789,223.08,222.87,0.82157928]
[1693449822970,0.07353789,223.08,222.88,0.82158189]
[1693449823270,0.07353789,223.08,222.86,0.07336576]
[1693449823471,0.07353789,223.08,222.87,0.82158338]
[1693449828279,0.07353789,223.09,222.87,0.82158338]
[1693449841194,0.07350006,223.09,222.87,0.82158338]
[1693449842490,0.07350006,223.08,222.87,0.82158338]
[1693449842690,0.07350006,223.09,222.87,0.82158338]
[1693449843489,0.07350006,223.08,222.87,0.82158338]
[1693449850696,0.07350006,223.08,222.87,0.89487628]
[1693449850897,0.07350006,223.08,222.88,0.82158338]
[1693449852995,0.07350006,223.07,222.88,0.82158338]
[1693449853601,0.07350006,223.07,222.87,0.0732929]
[1693449854594,0.07350006,223.07,222.86,0.0732929]
[1693449854795,0.07350006,223.07,222.87,0.82124194]
[1693449856201,0.07350006,223.07,222.87,0.89453484]
[1693449856404,0.07350006,223.07,222.87,0.0732929]
[1693449856796,0.07350006,223.07,222.86,0.0732929]
[1693449856999,0.07350006,223.07,222.87,0.82121932]
[1693449857201,0.07350006,223.07,222.87,0.89451222]
[1693449857401,0.07350006,223.07,222.86,0.0732929]
[1693449857598,0.07350006,223.07,222.87,0.82121797]
[1693449858099,0.07350006,223.07,222.87,0.89451087]
[1693449858305,0.07350006,223.07,222.88,0.82121797]
[1693449858602,0.07350006,223.08,222.88,0.82121797]
[1693449858804,0.07350006,223.07,222.88,0.82121797]
[1693449861600,0.07350006,223.07,222.86,0.0732929]
[1693449861798,0.07350006,223.07,222.87,0.82121172]
[1693449869913,0.07350006,223.08,222.87,0.89450462]
[1693449870116,0.07350006,223.08,222.88,0.82121172]
[1693449883721,0.07350006,223.03,222.82,0.0732929]
[1693449883926,0.07350006,223.03,222.75,0.1465858]
[1693449883927,0.07350006,223.02,222.81,0.0732929]
[1693449884125,0.07350006,223.02,222.82,0.82226311]
[1693449884627,0.07350006,223.04,222.82,0.82226311]
[1693449884821,0.07350006,223.08,222.83,0.89555601]
[1693449885021,0.07350006,223.08,222.84,0.82226311]
[1693449897632,0.07350006,223.09,222.84,0.82226311]
[1693449908443,0.07350006,223.09,222.84,0.89555601]
[1693449908740,0.07350006,223.09,222.85,0.82226311]
[1693449914540,0.07350006,223.08,222.85,0.82226311]
[1693449919743,0.07350006,223.06,222.86,0.0732929]
[1693449919942,0.07350006,223.06,222.87,0.82226311]
[1693449925448,0.07350006,223.06,222.86,0.0732929]
[1693449927950,0.07350006,223.06,222.87,0.82195789]
[1693449929551,0.07350006,223.06,222.86,0.0732929]
[1693449932249,0.07350006,223.06,222.85,0.0732929]
[1693449932455,0.07350006,223.06,222.86,0.89528764]
[1693449932753,0.07350006,223.06,222.86,0.0732929]
[1693449932953,0.07350006,223.06,222.85,0.0732929]
[1693449933153,0.07350006,223.06,222.86,0.82200157]
[1693449933747,0.07350006,223.06,222.86,0.89529447]
[1693449933949,0.07350006,223.06,222.87,0.82200157]
[1693449936555,0.07350006,223.06,222.86,0.0732929]
[1693449936952,0.07350006,223.06,222.87,0.82196764]
[1693449943857,0.07350006,223.07,222.87,0.82196764]
[1693449972186,0.07350006,223.07,222.86,0.0732929]
[1693449972380,0.07350006,223.06,222.87,0.82192875]
[1693449978790,0.07350006,223.06,222.85,0.0732929]
[1693449978990,0.07350006,223.06,222.86,0.82203141]
[1693449982793,0.07350006,223.06,222.86,0.89532431]
[1693449982992,0.07350006,223.06,222.87,0.82203141]
[1693449988495,0.07350006,223.07,222.87,0.82203141]
[1693449998603,0.07350006,223.06,222.87,0.82203141]
[1693450000403,0.07350006,223.07,222.87,0.82203141]
[1693450002103,0.07350006,223.06,222.87,0.82203141]
[1693450016116,0.07350006,223.06,222.86,0.0732929]
[1693450022624,0.07350006,223.06,222.85,0.0732929]
[1693450022924,0.07350006,223.06,222.86,0.82253505]
[1693450024123,0.07350006,223.06,222.86,0.89582795]
[1693450024325,0.07350006,223.06,222.87,0.82253505]
[1693450042639,2.4500023,223.2,222.87,0.82253505]
[1693450042942,0.07354884,223.06,222.86,0.07342693]
[1693450043140,0.07354884,223.06,222.87,0.82255877]
[1693450050839,0.07354884,223.06,222.86,0.07342693]
[1693450052938,0.07354884,223.06,222.85,0.07342693]
[1693450053141,0.07354884,223.06,222.86,0.8226212]
[1693450065452,0.07354884,223.06,222.86,0.89604813]
[1693450065653,0.07354884,223.06,222.87,0.8226212]
[1693450067654,0.07354884,223.06,222.85,0.07342693]
[1693450067855,0.07354884,223.06,222.86,0.82310802]
[1693450068456,0.07354884,223.06,222.86,0.89653495]
[1693450068656,0.07354884,223.06,222.87,0.82310802]
[1693450069758,0.07354884,223.06,222.86,0.07342693]
[1693450069959,0.07354884,223.06,222.85,0.07342693]
[1693450070155,0.07354884,223.06,222.86,0.82341069]
[1693450081762,0.07354884,223.06,222.86,0.89683762]
[1693450081963,0.07354884,223.06,222.86,0.07342693]
[1693450087564,0.07354884,223.05,222.86,0.07342693]
[1693450087769,0.07354884,223.06,222.86,0.07342693]
[1693450095177,0.07354884,223.06,222.87,0.82331505]
[1693450095670,0.07354884,223.06,222.86,0.07342693]
[1693450100179,0.07354884,223.06,222.87,0.82330667]
[1693450101284,0.07354884,223.06,222.86,0.07342693]
[1693450103282,0.07354884,223.06,222.87,0.82330299]
[1693450103484,0.07354884,223.06,222.86,0.07342693]
[1693450108388,0.07354884,223.05,222.86,0.07342693]
[1693450111185,0.07354884,223.06,222.86,0.07342693]
[1693450112987,0.07354884,223.06,222.87,0.82329744]
[1693450113191,0.07354884,223.06,222.86,0.07342693]
[1693450113992,0.07354884,223.06,222.87,0.82330012]
[1693450115393,0.07354884,223.07,222.87,0.89672705]
[1693450115589,0.07354884,223.07,222.87,0.07342693]
[1693450116192,0.07354884,223.07,222.86,0.07342693]
[1693450116393,0.07354884,223.07,222.87,0.82324767]
[1693450120500,0.07354884,223.08,222.87,0.82324767]
[1693450130712,0.07354884,223.09,222.87,0.82324767]
[1693450131014,0.07354884,223.09,222.87,0.8966746]
[1693450131412,0.07354884,223.09,222.88,0.82324767]
[1693450131912,0.07354884,223.09,222.89,0.82324767]
[1693450132111,0.07354884,223.09,222.86,0.07342693]
[1693450132312,0.07354884,223.09,222.87,0.82313263]
[1693450133711,0.07354884,223.1,222.87,0.82313263]
[1693450145730,0.07354884,223.09,222.87,0.82313263]
[1693450148533,0.07354884,223.09,222.87,0.89655956]
[1693450148835,0.07354884,223.09,222.88,0.82313263]
[1693450151534,0.07354884,223.1,222.88,0.82313263]
[1693450151736,0.07354884,223.1,222.88,0.89655956]
[1693450151927,0.07354884,223.11,222.89,0.82313263]
[1693450158335,0.07354884,223.11,222.88,0.82313263]
[1693450158538,0.07354884,223.11,222.89,0.82313263]
[1693450158736,0.07354884,223.11,222.9,0.82313263]
[1693450158936,0.07354884,223.11,222.88,0.82313263]
[1693450159137,0.07354884,223.11,222.89,0.82301452]
[1693450159337,0.07354884,223.11,222.9,0.82301452]
[1693450159536,0.07354884,223.11,222.87,0.07342693]
[1693450159736,0.07354884,223.11,222.88,0.82301308]
[1693450160838,0.07354884,223.16,222.92,0.07342693]
[1693450161049,0.07354884,223.17,222.93,0.89644001]
[1693450161241,0.07354884,223.18,222.94,0.89644001]
[1693450161433,0.07354884,223.18,222.95,0.82301308]
[1693450161839,0.07354884,223.19,222.94,0.82301308]
[1693450162038,0.07354884,223.19,222.95,0.82301308]
[1693450162233,0.07354884,223.19,222.93,0.82301308]
[1693450162433,0.07354884,223.19,222.92,0.07342693]
[1693450162434,0.07354884,223.19,222.94,0.82301308]
[1693450162637,0.07354884,223.2,222.95,0.82301308]
[1693450162938,0.07354884,223.2,222.96,0.82301308]
[1693450163138,0.07354884,223.2,222.92,0.82301308]
[1693450163338,0.07354884,223.2,222.93,0.82227759]
[1693450163542,0.07354884,223.2,222.94,0.82227759]
[1693450163741,0.07354884,223.21,222.92,0.82227759]
[1693450163942,0.07354884,223.21,222.93,0.82227759]
[1693450164136,0.07354884,223.21,222.94,0.82227759]
[1693450164338,0.07354884,223.21,222.91,0.82227759]
[1693450164736,0.07354884,223.22,222.91,0.82227759]
[1693450164938,0.07354884,223.22,222.92,0.82227759]
[1693450165136,0.07354884,223.22,222.89,0.07342693]
[1693450165137,0.07354884,223.22,222.93,0.82227759]
[1693450165339,0.07354884,223.22,222.94,0.82227759]
[1693450165540,0.07354884,223.22,222.9,0.82227759]
[1693450165842,0.07354884,223.22,222.91,0.82227759]
[1693450166042,0.07354884,223.22,222.92,0.82227759]
[1693450166242,0.07354884,223.22,222.9,0.82227759]
[1693450166538,0.07354884,223.22,222.91,0.82227759]
[1693450166744,0.07354884,223.22,222.92,0.82227759]
[1693450166941,0.07354884,223.22,222.89,0.82227759]
[1693450167141,0.07354884,223.22,222.9,0.82227759]
[1693450167341,0.07354884,223.22,222.91,0.82227759]
[1693450167545,0.07354884,223.23,222.89,0.82227759]
[1693450167844,0.07354884,223.23,222.9,0.82227759]
[1693450168042,0.07354884,223.23,222.88,0.07342693]
[1693450168043,0.07354884,223.23,222.91,0.82227759]
[1693450168241,0.07354884,223.23,222.89,0.82227759]
[1693450168541,0.07354884,223.23,222.9,0.82227759]
[1693450168736,0.07354884,223.23,222.91,0.82227759]
[1693450168936,0.07354884,223.23,222.89,0.82227759]
[1693450169140,0.07354884,223.23,222.9,0.82227759]
[1693450169342,0.07354884,223.23,222.91,0.82227759]
[1693450169542,0.07354884,223.23,222.88,0.82227759]
[1693450169736,0.07354884,223.23,222.89,0.82227759]
[1693450169936,0.07354884,223.23,222.9,0.82227759]
[1693450170241,0.07354884,223.23,222.91,0.82227759]
[1693450170436,0.07354884,223.23,222.92,0.82227759]
[1693450170741,0.07354884,223.24,222.93,0.82227759]
[1693450170941,0.07354884,223.24,222.88,0.82227759]
[1693450171242,0.07354884,223.24,222.89,0.82227759]
[1693450171544,0.07354884,223.24,222.9,0.82227759]
[1693450171738,0.07354884,223.24,222.91,0.82227759]
[1693450171941,0.07354884,223.24,222.92,0.82227759]
[1693450172140,0.07354884,223.24,222.88,0.82227759]
[1693450172340,0.07354884,223.24,222.89,0.82227759]
[1693450172541,0.07354884,223.24,222.9,0.82227759]
[1693450172741,0.07354884,223.24,222.88,0.82227759]
[1693450172942,0.07354884,223.24,222.89,0.82227759]
[1693450173140,0.07354884,223.24,222.88,0.82227759]
[1693450173345,0.07354884,223.24,222.89,0.82227759]
[1693450173538,0.07354884,223.24,222.9,0.82227759]
[1693450173744,0.07354884,223.24,222.88,0.82227759]
[1693450174043,0.07354884,223.24,222.89,0.82227759]
[1693450174240,0.07354884,223.24,222.9,0.82227759]
[1693450174441,0.07354884,223.24,222.88,0.82227759]
[1693450174643,0.07354884,223.24,222.89,0.82227759]
[1693450174838,0.07354884,223.24,222.9,0.82227759]
[1693450175042,0.07354884,223.24,222.88,0.82227759]
[1693450175244,0.07354884,223.24,222.89,0.82227759]
[1693450175437,0.07354884,223.24,222.9,0.82227759]
[1693450175639,0.07354884,223.24,222.88,0.82227759]
[1693450175839,0.07354884,223.24,222.89,0.82227759]
[1693450176040,0.07354884,223.24,222.9,0.82227759]